Cogmind - Beta 12 @@@ ROGUE MODE // 2023.06.15 @ 19:32:57 Player: Mr Goldstein Result: Self-destructed Performance ------------- Evolutions (4) 2000 Regions Visited (10) 2000 Robots Destroyed (18) 90 Value Destroyed (343) 343 Prototype IDs (5) 100 Alien Tech Used (0) 0 Bonus (1334) 1334 TOTAL SCORE: 5867 Bonus ------- Pacifist 834 Entered DSFs 500 Cogmind --------- Core Integrity 445/850 Matter 196/300 Energy 57/100 System Corruption 7% Temperature Cool (0) Movement Flying (34) Location -6/Factory Parts ------- > --- POWER (1) -------- (None) > --- PROPULSION (6) --- VTOL Module Biomechanical Wings > --- UTILITY (6) ------ Machine Analyzer Hacking Suite System Shield System Shield > --- WEAPON (2) ------- Improved Grenade Launcher Great Maul > --- INVENTORY (5) ---- Cold Fusion Reactor Medium Storage Unit Advanced Force Field Peak State ------------ > --- POWER ------------ Cold Fusion Reactor > --- PROPULSION ------- Improved Flight Unit Nuclear Pulse Thruster Nuclear Pulse Thruster Nuclear Pulse Thruster > --- UTILITY ---------- Power Amplifier Machine Analyzer Hacking Suite System Shield System Shield > --- WEAPON ----------- Antimatter Cannon Great Maul > --- INVENTORY -------- Medium Storage Unit Improved Grenade Launcher Improved Grenade Launcher Improved Grenade Launcher Improved Grenade Launcher [Rating: 51] Favorites ----------- Power Cold Fusion Reactor Engine Backup Power I Reactor Cold Fusion Reactor Propulsion Improved Flight Unit Flight Unit Improved Flight Unit Utility Hacking Suite Device Power Amplifier Storage Medium Storage Unit Processor Machine Analyzer Hackware Hacking Suite Weapon Great Maul Ballistic Cannon Antimatter Cannon Launcher Improved Grenade Launcher Impact Weapon Great Maul Build | -11 -10 -9 -8 -7 -7 -7 -7 -6 -6 -6 ------- Run | Jun Mat Mat Mat Fac Was Fac DSF Fac Was Fac Slots Evolved 8 | . . 2 2 2 . . . 2 . . Power . | . . . . . . . . . . . Propulsion 4 | . . 1 1 1 . . . 1 . . Utility 4 | . . 1 1 1 . . . 1 . . Weapon . | . . . . . . . . . . . Parts Attached 35 | . . 5 5 1 1 . 4 9 . 10 Power 1 | . . . . . . . . 1 . . Engine . | . . . . . . . . . . . Core . | . . . . . . . . . . . Reactor 1 | . . . . . . . . 1 . . Propulsion 16 | . . 4 3 . 1 . . 4 . 4 Treads . | . . . . . . . . . . . Leg . | . . . . . . . . . . . Wheel . | . . . . . . . . . . . Hover . | . . . . . . . . . . . Flight 16 | . . 4 3 . 1 . . 4 . 4 Utility 11 | . . 1 1 . . . 4 3 . 2 Device 3 | . . . . . . . . 2 . 1 Storage 2 | . . . 1 . . . . 1 . . Processor 1 | . . . . . . . 1 . . . Hackware 5 | . . 1 . . . . 3 . . 1 Protection . | . . . . . . . . . . . Artifact . | . . . . . . . . . . . Weapon 7 | . . . 1 1 . . . 1 . 4 Energy Gun . | . . . . . . . . . . . Energy Cannon . | . . . . . . . . . . . Ballistic Gun . | . . . . . . . . . . . Ballistic Cannon 1 | . . . . . . . . 1 . . Launcher 4 | . . . . 1 . . . . . 3 Special Weapon . | . . . . . . . . . . . Impact Weapon 2 | . . . 1 . . . . . . 1 Slashing Weapon . | . . . . . . . . . . . Piercing Weapon . | . . . . . . . . . . . Special Melee Weapon . | . . . . . . . . . . . Unidentified Prototypes 5 | . . 1 . . 1 . . 3 . . Parts Lost 18 | . . 3 . 3 . 1 2 . . 9 Power 1 | . . . . 1 . . . . . . Propulsion 13 | . . 3 . 2 . 1 1 . . 6 Utility 3 | . . . . . . . 1 . . 2 Weapon 1 | . . . . . . . . . . 1 Highest Loss Streak 8 | . . 2 . 3 . 1 3 . . 8 To Critical Strikes . | . . . . . . . . . . . Average Slot Usage (%) 43 | . . 22 19 54 38 36 43 70 80 49 Flight 16 | . . 15 9 28 23 21 8 27 33 11 Device 2 | . . . . . . . . 5 6 6 Processor 2 | . . . . . . . 4 6 6 6 Hackware 12 | . . 6 9 7 7 7 21 20 20 15 Impact Weapon 4 | . . . 1 7 7 7 7 6 6 6 Naked Turns 47 | . 19 28 . . . . . . . . Heaviest Build 17 | . . . 14 15 4 4 4 17 17 17 Greatest Support 29 | 3 3 14 17 17 15 15 9 29 29 29 Greatest Overweight (x) 1 | . . . . . . . . . . 1 Average Overweight (x) . | . . . . . . . . . . . Largest Inventory Capacity 10 | 5 5 5 10 10 5 5 5 10 5 5 Average Capacity 5 | 5 5 5 5 9 5 5 5 5 5 5 Most Carried 5 | . . 5 5 3 3 3 5 5 5 5 Average Carried 3 | . . 1 4 2 3 3 3 4 4 4 Final Capacity 10 | 5 5 5 10 5 5 5 5 5 5 5 Final Carried 5 | . . 5 2 3 3 3 5 4 5 3 Class Distribution -------------------- 29% | Mutant 27% | Hacker-Mutant 22% | Sprinter 20% | Hacker-Sprinter Dominant Class ---------------- Mutant | -10/Materials Mutant | -9/Materials Mutant | -8/Materials Sprinter | -7/Factory Sprinter | -7/Waste Mutant | -7/Factory Hacker-Mutant | -7/DSF Hacker-Mutant | -6/Factory Hacker-Sprinter | -6/Waste Hacker-Mutant | -6/Factory Resources | -11 -10 -9 -8 -7 -7 -7 -7 -6 -6 -6 ----------- Run | Jun Mat Mat Mat Fac Was Fac DSF Fac Was Fac Matter Collected 496 | 200 . . . 55 . . 3 124 . 114 Remotely . | . . . . . . . . . . . Salvage Created 362 | . . . . 135 . . . 161 . 66 Parts 26 | . . . . 11 . . . 4 . 11 Haulers Intercepted 2 | . . . . 1 . . . 1 . . Recyclers Shooed . | . . . . . . . . . . . Parts Field Recycled . | . . . . . . . . . . . Retrieved Matter . | . . . . . . . . . . . Parts Self-Destructed . | . . . . . . . . . . . Prevented . | . . . . . . . . . . . Kills | -11 -10 -9 -8 -7 -7 -7 -7 -6 -6 -6 ------- Run | Jun Mat Mat Mat Fac Was Fac DSF Fac Was Fac Combat Hostiles Destroyed 11 | . . . . 4 . . . 1 . 6 Melee 1 | . . . . . . . . 1 . . AOE 10 | . . . . 4 . . . . . 6 Classes Destroyed 5 | . . . . 3 . . . 1 . 1 Worker 2 | . . . . . . . . 2 . . Builder 2 | . . . . 2 . . . . . . Tunneler 1 | . . . . . . . . . . 1 Hauler 2 | . . . . 1 . . . 1 . . Swarmer 11 | . . . . 4 . . . 1 . 6 Best Kill Streak 5 | . . . . 4 . . . 3 . 5 Combat Bots Only 4 | . . . . 4 . . . 1 . 4 Max Kills in Single Turn 3 | . . . . 3 . . . 1 . 2 Gunslinging . | . . . . . . . . . . . Exploded 3 | . . . . 3 . . . . . 2 Melee 1 | . . . . . . . . 1 . . Uniques/NPCs Destroyed . | . . . . . . . . . . . Combat | -11 -10 -9 -8 -7 -7 -7 -7 -6 -6 -6 -------- Run | Jun Mat Mat Mat Fac Was Fac DSF Fac Was Fac Damage Taken 1548 | . 11 230 145 160 . 10 173 . . 819 Core 907 | . 11 132 145 46 . 5 163 . . 405 Absorbed by Shields . | . . . . . . . . . . . Core Remaining (%) 80 | 100 95 67 73 . . . 69 . . . Volleys Fired 8 | . . . . 2 . . . . . 6 Largest 1 | . . . . 1 . . . . . 1 Hottest 36 | . . . . 30 . . . . . 36 Shots Fired 8 | . . . . 2 . . . . . 6 Gun . | . . . . . . . . . . . Cannon . | . . . . . . . . . . . Launcher 8 | . . . . 2 . . . . . 6 Special . | . . . . . . . . . . . Kinetic . | . . . . . . . . . . . Thermal . | . . . . . . . . . . . Explosive 8 | . . . . 2 . . . . . 6 Electromagnetic . | . . . . . . . . . . . Robot Hit Streak 3 | . . . . . . . . . . 3 Robot Miss Streak 2 | . . . . . . . . . . 2 Penetration Max . | . . . . . . . . . . . Secondary Targets . | . . . . . . . . . . . Shots Hit Robots 11 | . . . . 3 . . . 4 . 4 Core Hits 16 | . . . . 7 . . . 1 . 8 Critical Kills . | . . . . . . . . . . . Critical Parts Destroyed 1 | . . . . . . . . 1 . . Critical Strikes 1 | . . . . . . . . 1 . . Smash 1 | . . . . . . . . 1 . . Melee Attacks 8 | . . . . 3 . . . 4 . 1 Impact 8 | . . . . 3 . . . 4 . 1 Slashing . | . . . . . . . . . . . Piercing . | . . . . . . . . . . . Sneak Attacks 8 | . . . . 3 . . . 4 . 1 Combat Hostiles 1 | . . . . . . . . 1 . . Follow-up Attacks . | . . . . . . . . . . . Damage Inflicted 1514 | . . . . 526 . . . 362 . 626 Guns . | . . . . . . . . . . . Cannons . | . . . . . . . . . . . Explosions 781 | . . . . 250 . . . . . 531 Melee 733 | . . . . 276 . . . 362 . 95 Ramming . | . . . . . . . . . . . Kinetic . | . . . . . . . . . . . Thermal . | . . . . . . . . . . . Explosive 781 | . . . . 250 . . . . . 531 Electromagnetic . | . . . . . . . . . . . Impact 733 | . . . . 276 . . . 362 . 95 Slashing . | . . . . . . . . . . . Piercing . | . . . . . . . . . . . Highest Corruption 9 | . . . . . 7 9 9 . 5 7 Average Corruption 6 | . . . . . 7 7 9 . 5 5 Corruption Purged . | . . . . . . . . . . . Corruption Blocked . | . . . . . . . . . . . Effects 8 | . . . . . . . 2 . 1 5 Message Errors 2 | . . . . . . . . . . 2 Matter Fused 3 | . . . . . . . 2 . 1 . Energy Discharges 2 | . . . . . . . . . . 2 Alerts 1 | . . . . . . . . . . 1 Overload Shots . | . . . . . . . . . . . Overflow Damage 457 | . . . . 158 . . . 226 . 73 Projectiles . | . . . . . . . . . . . Explosions 75 | . . . . 2 . . . . . 73 Melee 382 | . . . . 156 . . . 226 . . Knockbacks . | . . . . . . . . . . . Impact . | . . . . . . . . . . . Kinetic . | . . . . . . . . . . . Secondary . | . . . . . . . . . . . Self-Inflicted Damage . | . . . . . . . . . . . Shots . | . . . . . . . . . . . Rammed . | . . . . . . . . . . . Targets Rammed . | . . . . . . . . . . . Kicked . | . . . . . . . . . . . Crushed . | . . . . . . . . . . . Highest Temperature 4 | . . . . . . . . . . 4 Average Temperature 4 | . . . . . . . . . . 4 Received Heat Transfer 306 | . 6 45 45 45 . . . . . 165 Siege Activations . | . . . . . . . . . . . Robots Corrupted . | . . . . . . . . . . . Combat Hostiles . | . . . . . . . . . . . Parts Fried 7 | . . . . 3 . . . 4 . . Impact Corruptions 8 | . . . . 4 . . . 4 . . Robots Melted . | . . . . . . . . . . . Combat Hostiles . | . . . . . . . . . . . Parts Melted . | . . . . . . . . . . . Heat Transferred . | . . . . . . . . . . . Parts Sabotaged . | . . . . . . . . . . . Parts Stolen . | . . . . . . . . . . . Parts Stripped . | . . . . . . . . . . . Power Chain Reactions . | . . . . . . . . . . . Missiles Intercepted . | . . . . . . . . . . . Alert | -11 -10 -9 -8 -7 -7 -7 -7 -6 -6 -6 ------- Run | Jun Mat Mat Mat Fac Was Fac DSF Fac Was Fac Peak Influence 376 | . . 80 172 228 121 89 62 66 68 376 Initial 84 | . . . 25 77 76 84 62 29 23 47 Average 113 | . . 41 96 136 102 84 47 36 44 237 Maximum Alert Level 1 | . . . . 1 . . . . . 1 Low Security (%) 82 | 100 100 100 100 91 100 100 100 100 100 35 Level 1 17 | . . . . 8 . . . . . 64 Level 2 . | . . . . . . . . . . . Level 3 . | . . . . . . . . . . . Level 4 . | . . . . . . . . . . . Level 5 . | . . . . . . . . . . . High Security . | . . . . . . . . . . . Max Security . | . . . . . . . . . . . Squads Dispatched 8 | . . 1 3 1 . . . . . 3 Investigation 7 | . . 1 2 1 . . . . . 3 Extermination . | . . . . . . . . . . . Reinforcement 1 | . . . 1 . . . . . . . Assault . | . . . . . . . . . . . Garrison . | . . . . . . . . . . . Intercept . | . . . . . . . . . . . Searches Triggered . | . . . . . . . . . . . Construction Impeded . | . . . . . . . . . . . Haulers Reinforced . | . . . . . . . . . . . Active Scanning Responses . | . . . . . . . . . . . Cargo Convoy Interrupts . | . . . . . . . . . . . Stealth | -11 -10 -9 -8 -7 -7 -7 -7 -6 -6 -6 --------- Run | Jun Mat Mat Mat Fac Was Fac DSF Fac Was Fac Distress Signals 1 | . . 1 . . . . . . . . Communications Jammed . | . . . . . . . . . . . Distress Signals . | . . . . . . . . . . . Times Spotted 63 | . 2 12 11 7 5 1 1 . 4 20 Peak Tracking Total 9 | . 2 8 9 6 5 1 1 . 4 9 Tactical Retreats 7 | . . 1 1 . . . 1 . . 4 Traps | -11 -10 -9 -8 -7 -7 -7 -7 -6 -6 -6 ------- Run | Jun Mat Mat Mat Fac Was Fac DSF Fac Was Fac Traps Triggered 5 | . . . . 1 . 1 . 1 . 2 Indirectly . | . . . . . . . . . . . Trap Hack Attempts . | . . . . . . . . . . . Triggered . | . . . . . . . . . . . Disarmed . | . . . . . . . . . . . Reprogrammed . | . . . . . . . . . . . Reused . | . . . . . . . . . . . Traps Extracted . | . . . . . . . . . . . Installed . | . . . . . . . . . . . Triggered . | . . . . . . . . . . . Machines | -11 -10 -9 -8 -7 -7 -7 -7 -6 -6 -6 ---------- Run | Jun Mat Mat Mat Fac Was Fac DSF Fac Was Fac Machines Disabled 1 | . . . . . . . . . . 1 Max in Single Turn 1 | . . . . . . . . . . 1 Machines Repaired . | . . . . . . . . . . . Machines Sabotaged . | . . . . . . . . . . . Overloaded Fab Kills . | . . . . . . . . . . . Hacking | -11 -10 -9 -8 -7 -7 -7 -7 -6 -6 -6 --------- Run | Jun Mat Mat Mat Fac Was Fac DSF Fac Was Fac Machines Accessed 10 | . . 1 3 2 . 1 . . . 3 Terminals 6 | . . 1 2 . . 1 . . . 2 Fabricators . | . . . . . . . . . . . Repair Stations 1 | . . . . 1 . . . . . . Recycling Units 3 | . . . 1 1 . . . . . 1 Scanalyzers . | . . . . . . . . . . . Garrison Access . | . . . . . . . . . . . Total Hacks 19 | . . 2 6 2 . 1 . . . 8 Successful 7 | . . . 2 2 . 1 . . . 2 Failed 12 | . . 2 4 . . . . . . 6 Catastrophic 5 | . . 1 2 . . . . . . 2 Database Lockouts . | . . . . . . . . . . . Manual 12 | . . 2 4 1 . . . . . 5 Terminals 15 | . . 2 5 . . 1 . . . 7 Fabricators . | . . . . . . . . . . . Repair Stations 1 | . . . . 1 . . . . . . Recycling Units 3 | . . . 1 1 . . . . . 1 Scanalyzers . | . . . . . . . . . . . Garrison Access . | . . . . . . . . . . . Terminal Hacks 3 | . . . 1 . . 1 . . . 1 Open DSF 1 | . . . . . . 1 . . . . Branch Access Points 1 | . . . . . . . . . . 1 Zone Layout 1 | . . . 1 . . . . . . . Fabricator Hacks . | . . . . . . . . . . . Repair Station Hacks 1 | . . . . 1 . . . . . . Refit 1 | . . . . 1 . . . . . . Recycling Unit Hacks . | . . . . . . . . . . . Scanalyzer . | . . . . . . . . . . . Garrison Access Hacks . | . . . . . . . . . . . Unauthorized Hacks 3 | . . . 1 1 . . . . . 1 Terminals . | . . . . . . . . . . . Fabricators . | . . . . . . . . . . . Repair Stations . | . . . . . . . . . . . Recycling Units 3 | . . . 1 1 . . . . . 1 Tunnel 3 | . . . 1 1 . . . . . 1 Scanalyzers . | . . . . . . . . . . . Garrison Access . | . . . . . . . . . . . Data Cores Recovered 1 | . . 1 . . . . . . . . Used . | . . . . . . . . . . . Hacking Detections 5 | . . 1 2 . . . . . . 2 Full Trace Events 4 | . . 1 1 . . . . . . 2 Feedback Events 1 | . . . . . . . . . . 1 Corruption 1 | . . . . . . . . . . 1 Feedback Blocked . | . . . . . . . . . . . Robot Schematics Acquired . | . . . . . . . . . . . Robots Built . | . . . . . . . . . . . Authchips . | . . . . . . . . . . . Time . | . . . . . . . . . . . Total Robot Build Rating . | . . . . . . . . . . . Part Schematics Acquired . | . . . . . . . . . . . Parts Built . | . . . . . . . . . . . Authchips . | . . . . . . . . . . . Time . | . . . . . . . . . . . Total Part Build Rating . | . . . . . . . . . . . Parts Repaired . | . . . . . . . . . . . Time . | . . . . . . . . . . . Parts Recycled . | . . . . . . . . . . . Recycled Matter . | . . . . . . . . . . . Retrieved Matter . | . . . . . . . . . . . Retrieved Components . | . . . . . . . . . . . Parts Scanalyzed . | . . . . . . . . . . . Part Schematics Acquired . | . . . . . . . . . . . Parts Damaged . | . . . . . . . . . . . Bothacking | -11 -10 -9 -8 -7 -7 -7 -7 -6 -6 -6 ------------ Run | Jun Mat Mat Mat Fac Was Fac DSF Fac Was Fac Used RIF Installer . | . . . . . . . . . . . Robots Hacked . | . . . . . . . . . . . Non-combat . | . . . . . . . . . . . Combat . | . . . . . . . . . . . Robot Hacks Applied . | . . . . . . . . . . . Relay Couplers Released . | . . . . . . . . . . . Fabnet Peak Effective % . | . . . . . . . . . . . Robots Rewired . | . . . . . . . . . . . Allies Hacked . | . . . . . . . . . . . Hacks Repelled . | . . . . . . . . . . . Allies | -11 -10 -9 -8 -7 -7 -7 -7 -6 -6 -6 -------- Run | Jun Mat Mat Mat Fac Was Fac DSF Fac Was Fac Total Allies . | . . . . . . . . . . . Largest Group . | . . . . . . . . . . . Highest-Rated Group . | . . . . . . . . . . . Highest-Rated Ally . | . . . . . . . . . . . Total Orders . | . . . . . . . . . . . Ally Attacks . | . . . . . . . . . . . Total Damage . | . . . . . . . . . . . Kills . | . . . . . . . . . . . Allies Corrupted . | . . . . . . . . . . . Allies Melted . | . . . . . . . . . . . Intel | -11 -10 -9 -8 -7 -7 -7 -7 -6 -6 -6 ------- Run | Jun Mat Mat Mat Fac Was Fac DSF Fac Was Fac Robot Analysis Total . | . . . . . . . . . . . Derelict Logs Recovered . | . . . . . . . . . . . Drone Launches . | . . . . . . . . . . . Drone Recoveries . | . . . . . . . . . . . Exploration | -11 -10 -9 -8 -7 -7 -7 -7 -6 -6 -6 ------------- Run | Jun Mat Mat Mat Fac Was Fac DSF Fac Was Fac Turns Passed 703 | 12 19 79 96 83 29 32 59 81 30 183 Spaces Moved 1587 | 24 37 158 226 173 85 97 126 154 102 405 Core 126 | 24 37 65 . . . . . . . . Treads . | . . . . . . . . . . . Legs . | . . . . . . . . . . . Wheels . | . . . . . . . . . . . Hover . | . . . . . . . . . . . Flight 1461 | . . 93 226 173 85 97 126 154 102 405 Fastest Speed 28 | 50 50 32 28 28 32 32 34 28 28 28 Average Speed 36 | 50 50 40 39 28 32 32 39 33 28 37 Slowest Speed 106 | 50 50 50 40 34 34 34 40 40 28 106 Overloaded Moves . | . . . . . . . . . . . Propulsion Burnouts . | . . . . . . . . . . . Robots Hopped 22 | . . 4 6 . . . 1 . 2 9 Cave-ins Triggered . | . . . . . . . . . . . Exploration Rate (%) 33 | 3 21 24 34 8 72 4 95 5 85 18 Regions Visited 10 Branch Regions . Pre-discovered Areas 3 | . . . 1 1 . . . . . 1 Known Exits Taken 1 | . . . . . . 1 . . . . Unknown Exits Taken 4 | 1 1 1 1 . . . . . . . Scrap Searched . | . . . . . . . . . . . Spaces Dug 13 | . . . . 13 . . . . . . Terrain Destroyed 35 | . . . . 13 . . . . . 22 Melee . | . . . . . . . . . . . Projectile . | . . . . . . . . . . . AOE 35 | . . . . 13 . . . . . 22 Terrain Rammed . | . . . . . . . . . . . Walls Destroyed . | . . . . . . . . . . . Machines Disabled . | . . . . . . . . . . . Actions | -11 -10 -9 -8 -7 -7 -7 -7 -6 -6 -6 --------- Run | Jun Mat Mat Mat Fac Was Fac DSF Fac Was Fac Total 1653 | 23 36 167 224 200 85 96 134 173 100 415 Wait 18 | . . . . 18 . . . . . . Move 1540 | 23 36 149 215 173 84 96 123 154 98 389 Hop 17 | . . 4 4 . . . 1 . 1 7 Pick Up 12 | . . 6 . . . . 4 1 1 . Fast Attach 27 | . . 5 2 . 1 . 4 8 . 7 Attach 8 | . . . 3 1 . . . 1 . 3 Detach 4 | . . . . 2 . . . 1 . 1 Swap 1 | . . 1 . . . . . . . . Drop 10 | . . 2 . 1 . . 2 4 . 1 Fire 8 | . . . . 2 . . . . . 6 Melee 8 | . . . . 3 . . . 4 . 1 Ram . | . . . . . . . . . . . Kick . | . . . . . . . . . . . Crush . | . . . . . . . . . . . Escape Stasis . | . . . . . . . . . . . Rewire . | . . . . . . . . . . . Trap . | . . . . . . . . . . . Miscellaneous . | . . . . . . . . . . . Route ------- -11/Junkyard -10/Materials -9/Materials -8/Materials (discovered 2 exits: *Fac / [*Sto]) -7/Factory -7/Waste -7/Factory -7/DSF -6/Factory -6/Waste -6/Factory (discovered 4 exits: Low x2 / Ext x2) History --------- Turn | Location | Event 6 | -11/Junkyard | Discovered new exit (range 14) 13 | -11/Junkyard | Entered Materials 27 | -10/Materials | Discovered new exit (range 11) 32 | -10/Materials | Entered another Materials area 32 | -9/Materials | Evolved 2 slots: Propulsion x1, Utility x1 94 | -9/Materials | Discovered new exit (range 15) 111 | -9/Materials | Entered another Materials area 111 | -8/Materials | Evolved 2 slots: Propulsion x1, Utility x1 188 | -8/Materials | Discovered new exit (range 16) 197 | -8/Materials | Discovered new exit (range 13) 207 | -8/Materials | Entered Factory 207 | -7/Factory | Evolved 2 slots: Propulsion x1, Utility x1 290 | -7/Factory | Sucked down chute 290 | -7/Factory | Entered Waste 295 | -7/Waste | Spotted C-40 Crusher 296 | -7/Waste | Spotted C-40 Crusher 298 | -7/Waste | Spotted C-40 Crusher 300 | -7/Waste | Spotted C-40 Crusher 305 | -7/Waste | EMP discharged 305 | -7/Waste | Spotted C-40 Crusher 308 | -7/Waste | Spotted C-40 Crusher 314 | -7/Waste | Discovered new exit (range 14) 316 | -7/Waste | Lost 3 parts (1p2n) 319 | -7/Waste | Entered Factory 351 | -7/Factory | Identified exit to DSF 351 | -7/Factory | Entered DSF 375 | -7/DSF | Additional patrols routed to DSF 384 | -7/DSF | Discovered new exit (range 14) 392 | -7/DSF | Lost 3 parts (2n1u) 410 | -7/DSF | Entered Factory 410 | -6/Factory | Evolved 2 slots: Propulsion x1, Utility x1 470 | -6/Factory | Spotted B-75 Beast 491 | -6/Factory | Sucked down chute 491 | -6/Factory | Entered Waste 500 | -6/Waste | Spotted C-40 Crusher 501 | -6/Waste | Spotted C-40 Crusher 506 | -6/Waste | EMP discharged 506 | -6/Waste | Spotted C-40 Crusher 510 | -6/Waste | Spotted C-40 Crusher 510 | -6/Waste | Spotted C-40 Crusher 510 | -6/Waste | Spotted C-40 Crusher 512 | -6/Waste | Discovered new exit (range 16) 521 | -6/Waste | Entered Factory 545 | -6/Factory | Spotted B-75 Beast 592 | -6/Factory | Lost 8 parts (6n1u1w) 601 | -6/Factory | Identified exit to Lower Caves 601 | -6/Factory | Identified exit to Extension 704 | -6/Factory | Self-destructed Last Messages --------------- 00631_ Power Amplifier severed. 00632_ Acquired Biomechanical Wings. 00634_ Acquired Great Maul. 00636_ T-07 Excavator is excavating. 00636_ Acquired Power Amplifier. 00640_ T-07 Excavator is excavating. 00641_ IQIK6X I>DPJWSBBQC6,BPT7BR%FK 00644_ T-07 Excavator is excavating. 00645_ Sneak attack on A-15 Conveyor. 00656_ System corrupted: Energy discharge (-34). 00656_ >> Machine Analyzer network decryption results: 00656_ Garrison Access x3 00672_ >> Machine Analyzer network decryption results: 00672_ Repair Station x1 00676_ Acquired System Shield. 00680_ S-27 Virus destroyed. 00687_ Acquired VTOL Module. 00689_ Acquired 17 matter. 00704_ System corrupted: Energy discharge (-28). 00704_ Power Amplifier destroyed. Map ----- +----------------------------------------------------+ | ?????????# # ## !! | | ?????????# ######### # ??# !!! !! | | ??######## #??????# ###+##### !!! | | ??# #??????#T !! """ | | ??# #??????## """ | | ??# #???????# """ | | ??+ #???????# | | ??# #???????# | | ??# #????################### ##"" ""### | | ??# #?? #????????# #"F ""#?? | | # #????????#####"""""#?? | | + #????????????#######?? | | """ ""G"" # #????????????????????? | | """ " " #?? #????????????????????? | | ??""" " " #???? #????????????????????? | | #?????? #????????????????????? | | ??""" """ """ #???????? ?????????????????????? | | ??""" """ """ #?????????? ?????????????????????? | | ??""" """ """ #?????????????????????????????????? | | #?????????????????????????????????? | | ??""" """ """ #?????????????????????????????????? | | ??""" """ """ ################??????????????????? | | ??""" """ """ # """"" """"" #??????????????????? | | # """"" """"" #??????????????????? | | """ """ """ # """ """ #??????????????????? | | """ """ """ s @ #??????????????????? | | """ """ """ #??????????????????? | | #??????????????????? | | p ############??????????????????? | | ] ####/### #####???????????????????????????? | | # #???????????????????????????? | | []! ! # #???????????????????????????? | | ]!! + #???????????????????????????? | | ]! # #???????????????????????????? | | # #???????????????????????????? | | ##############???????????????????????????? | | #####/#######????????????????????????????????????? | | #????????????????????????????????????? | | """ #????????????????????????????????????? | | ""R" #????????????????????????????????????? | | ""*" """" #????????????????????????????????????? | | *% """" #????????????????????????????????????? | | """" #????????????????????????????????????? | | """" #????????????????????????????????????? | | """" #????????????????????????????????????? | | """"??????????????????????????????????????? | | = """"??????????????????????????????????????? | | #????????????????????????????????????? | | #????????????????????????????????????? | | #############????????????????????????????????????? | +----------------------------------------------------+ Best States ------------- Heat Dissipation 37 Energy Generation 19 Energy Capacity 200 Matter Stores 300 Matter Capacity 300 Sight Range 16 Terrain Scan Density 10 Power Amplification 20 Evasion (%) 64 Offensive Hacking 10 Defensive Hacking 20 Item Schematics ----------------- None Robot Schematics ------------------ None Fabricated ------------ Nothing Alien Tech Used ----------------- None Achievements -------------- None Challenges ------------ None Game ------ Seed GuidanceAssembledNetwork Manual? 0 Play Time 00:12:48 Cumulative 299.8 hours Start 2023.06.15 @ 19:22:49 End 2023.06.15 @ 19:32:57 Sessions 1 Manual Loads 0 Difficulty Rogue Special Mode None Game No. 865 Rogue 865 Adventurer 0 Explorer 0 Win Type - Total 22 Types 8/0/10/2/0/0/2/0/0 Lore% 92 Gallery% 89 Achievement% 82 Wizard Run 0 Options --------- ASCII 0 Keyboard 0 Movement Numpad Keybinds 0 Fullscreen 1 Font 16/SmallcapsGlow Map View 75x55 Tactical HUD 1 Map Filters NONE Filters NONE Steam 1 RUN: 96713716-f6b2-42bb-9892-22e7a50e8f91